bitfinex-derivatives/quotes_ETHF0:USTF0_20230702
["timestamp","ask_amount","ask_price","bid_price","bid_amount"]
[1688283541834,12.87686757,1915.2,1915.1,0.32114187]
[1688283542132,1.14588783,1915.2,1915.1,5.41234187]
[1688283548542,1.14588783,1915.2,1915.1,5.09903187]
[1688283550341,1.14588783,1915.2,1915.1,5.41234187]
[1688283559043,1.14588783,1915.2,1915.1,5.09903187]
[1688283559248,1.43260418,1915.2,1915.1,5.09903187]
[1688283560349,1.14588783,1915.2,1915.1,5.09903187]
[1688283576669,1.14588783,1915.2,1915.1,5.41234187]
[1688283582774,1.43260418,1915.2,1915.1,5.41234187]
[1688283584073,1.63939826,1915.2,1915.1,5.41234187]
[1688283589980,1.35268191,1915.2,1915.1,5.41234187]
[1688283595483,1.63939826,1915.2,1915.1,5.41234187]
[1688283599689,1.35268191,1915.2,1915.1,5.41234187]
[1688283600394,1.63939826,1915.2,1915.1,5.41234187]
[1688283602892,1.35268191,1915.2,1915.1,5.41234187]
[1688283605492,1.63939826,1915.2,1915.1,5.41234187]
[1688283606598,1.35268191,1915.2,1915.1,5.41234187]
[1688283607398,1.63939826,1915.2,1915.1,5.41234187]
[1688283608795,0.81238944,1915.2,1915.1,5.41234187]
[1688283609098,0.60559536,1915.2,1915.1,5.41234187]
[1688283609294,1.41878429,1915.2,1915.1,5.41234187]
[1688283609491,1.41878429,1915.2,1915.1,5.09903187]
[1688283615608,1.41878429,1915.2,1915.1,5.41234187]
[1688283616899,1.41878429,1915.2,1915.1,0.00783187]
[1688283617900,10.32876403,1915.2,1915.1,0.00783187]
[1688283631519,13.13776403,1915.2,1915.1,0.00783187]
[1688283635629,13.462379,1915.2,1915.1,0.00783187]
[1688283647333,13.462379,1915.2,1915.1,0.42514187]
[1688283647334,9.85038364,1915.2,1915.1,0.42514187]
[1688283647535,0.5407039,1915.2,1915.1,6.43894187]
[1688283647731,1.01084085,1915.2,1915.1,6.43894187]
[1688283649441,1.33102215,1915.2,1915.1,6.43894187]
[1688283650937,1.33102215,1915.2,1915.1,16.57014187]
[1688283652144,1.33102215,1915.2,1915.1,22.48981159]
[1688283654543,1.33102215,1915.2,1915.1,22.38581159]
[1688283655657,1.01773215,1915.2,1915.1,22.38581159]
[1688283655947,8.90603572,1915.3,1915.1,22.38581159]
[1688283656247,0.31328,1915.4,1915.2,3.11928]
[1688283656444,0.31328,1915.4,1915.2,3.22328]
[1688283657555,0.31328,1915.4,1915.3,5.92330966]
[1688283657850,0.31328,1915.4,1915.3,6.23657966]
[1688283659045,0.31328,1915.4,1915.3,11.23807966]
[1688283659449,0.31328,1915.4,1915.3,14.44587966]
[1688283659650,0.31328,1915.4,1915.3,19.44157966]
[1688283660447,0.31328,1915.4,1915.3,19.12830966]
[1688283661251,0.31328,1915.4,1915.3,19.44157966]
[1688283662062,0.31328,1915.4,1915.3,22.25457966]
[1688283663448,0.8261784,1915.4,1915.3,22.25457966]
[1688283665462,0.5128984,1915.4,1915.3,22.25457966]
[1688283680077,0.8261584,1915.4,1915.3,22.25457966]
[1688283681481,1.11287475,1915.4,1915.3,12.25737966]
[1688283682583,0.8261584,1915.4,1915.3,12.25737966]
[1688283687488,0.5128984,1915.4,1915.3,12.25737966]
[1688283687788,0.5128984,1915.4,1915.3,17.05197966]
[1688283689385,0.5128984,1915.4,1915.3,22.11517966]
[1688283700104,0.5128984,1915.4,1915.3,23.48448818]
[1688283702592,0.5128984,1915.4,1915.3,22.11517966]
[1688283704898,0.49385029,1915.4,1915.3,22.11517966]
[1688283705398,0.49952066,1915.4,1915.3,22.11517966]
[1688283717414,0.62303959,1915.4,1915.3,22.11517966]
[1688283718816,0.62303959,1915.4,1915.3,23.48448818]
[1688283719205,0.62303959,1915.4,1915.3,22.11517966]
[1688283720610,0.90975594,1915.4,1915.3,22.11517966]
[1688283721007,0.62303959,1915.4,1915.3,22.11517966]
[1688283722404,0.62303959,1915.4,1915.3,23.48448818]
[1688283728513,0.61736922,1915.4,1915.3,23.48448818]
[1688283728716,5.99831,1915.6,1915.3,23.48448818]
[1688283728915,5.99831,1915.6,1915.5,2.813]
[1688283729116,14.93389188,1915.6,1915.5,6.33404]
[1688283729416,15.58142379,1915.6,1915.5,6.33404]
[1688283729615,10.65294014,1915.6,1915.5,6.33404]
[1688283730216,1.43064191,1915.6,1915.5,6.33404]
[1688283730416,10.36711107,1915.6,1915.5,6.33404]
[1688283730618,10.65382742,1915.6,1915.5,6.33404]
[1688283733025,0.64753191,1915.6,1915.5,7.70334852]
[1688283733319,0.6422858,1915.6,1915.5,13.32145952]
[1688283733520,0.78308,1915.9,1915.7,3.1222]
[1688283733717,0.78308,1915.9,1915.8,2.806]
[1688283733718,10.83928,1915.9,1915.8,2.806]
[1688283733917,20.41907983,1915.9,1915.8,8.56093758]
[1688283734228,20.70579618,1915.9,1915.8,8.56093758]
[1688283734425,10.65444649,1915.9,1915.8,8.56093758]
[1688283734920,1.41563361,1915.9,1915.8,8.56093758]
[1688283735122,1.41563361,1915.9,1915.8,8.87412758]
[1688283737129,0.63255361,1915.9,1915.8,8.87412758]
[1688283744032,0.91926996,1915.9,1915.8,8.87412758]
[1688283744434,0.63255361,1915.9,1915.8,8.87412758]
[1688283744937,0.63255361,1915.9,1915.8,9.28844183]
[1688283747428,0.63255361,1915.9,1915.8,10.82075986]
[1688283748532,0.63255361,1915.9,1915.8,9.28844183]
[1688283756942,0.63255361,1915.9,1915.8,14.47304183]
[1688283757141,0.79348684,1915.9,1915.8,14.47304183]
[1688283757744,0.79348684,1915.9,1915.8,9.28844183]
[1688283758443,0.79348684,1915.9,1915.8,14.47304183]
[1688283767847,0.79348684,1915.9,1915.8,16.0442708]
[1688283770849,0.79348684,1915.9,1915.8,16.1482708]
[1688283773453,0.79348684,1915.9,1915.8,16.0442708]
[1688283787575,4.842,1916.3,1916.0,5.0]
[1688283787781,4.842,1916.3,1916.2,3.12613]
[1688283787974,5.5164,1916.4,1916.2,3.12613]
[1688283788180,14.50657975,1916.4,1916.3,3.12611]
[1688283788377,9.5899961,1916.4,1916.3,3.12611]
[1688283789070,0.59981635,1916.4,1916.3,3.12611]
[1688283789578,1.06426907,1916.4,1916.3,3.12611]
[1688283790178,0.91325738,1916.4,1916.3,3.12611]
[1688283790377,0.62654103,1916.4,1916.3,3.12611]
[1688283790685,15.88905738,1916.4,1916.1,0.00782778]
[1688283790884,15.88905738,1916.4,1915.1,4.09577663]
[1688283790885,8.664,1915.9,1915.1,4.09577663]
[1688283791183,6.0258,1915.2,1915.0,44.63967106]
[1688283791377,3.41902635,1915.1,1915.0,37.80094713]
[1688283791575,0.60002635,1915.1,1915.0,37.80094713]
[1688283794580,0.60501545,1915.1,1915.0,37.80094713]
[1688283796382,0.3182991,1915.1,1915.0,37.80094713]
[1688283796576,0.3182991,1915.1,1915.0,40.60694713]
[1688283796984,0.0049891,1915.1,1915.0,45.92026713]
[1688283797182,0.00782777,1915.2,1915.1,2.809]
[1688283797386,0.00782777,1915.2,1915.1,9.13611]
[1688283797686,0.00782777,1915.2,1915.1,15.04017746]
[1688283800087,0.25338613,1915.2,1915.1,15.04017746]
[1688283800288,0.00782777,1915.2,1915.1,15.04017746]
[1688283800584,0.2544393,1915.2,1915.1,15.04017746]
[1688283800784,0.00782777,1915.2,1915.1,15.04017746]
[1688283801087,0.25547375,1915.2,1915.1,15.04017746]
[1688283801282,0.00782777,1915.2,1915.1,15.04017746]
[1688283801483,0.25650209,1915.2,1915.1,15.04017746]
[1688283804595,0.78318,1915.6,1915.4,0.31326]
[1688283804782,0.78317,1915.7,1915.5,11.33604]
[1688283804981,0.31324,1915.8,1915.7,5.93621]
[1688283805184,0.31324,1915.8,1915.7,8.8418]
[1688283805691,0.31808091,1915.8,1915.7,9.15501]
[1688283811601,0.31627326,1915.8,1915.7,9.15501]
[1688283812300,0.70412096,1915.8,1915.7,9.15501]
[1688283812500,0.31627326,1915.8,1915.7,9.15501]
[1688283812704,0.70516809,1915.8,1915.7,9.15501]
[1688283813106,0.39192809,1915.8,1915.7,14.15501]
[1688283813293,0.78298,1916.1,1915.7,14.55181455]
[1688283813497,0.31316,1916.0,1915.9,3.2078]
[1688283813694,0.31316,1916.0,1915.9,6.32697]
[1688283813899,0.31316,1916.0,1915.9,7.34262423]
[1688283821611,0.31605931,1916.0,1915.9,7.34262423]
[1688283824613,0.31605931,1916.0,1915.9,8.90654728]
[1688283824814,0.31605931,1916.0,1915.9,8.59337728]
[1688283825012,0.60277566,1916.0,1915.9,8.90654728]
[1688283825314,0.96334428,1916.0,1915.9,8.90654728]
[1688283825515,0.67662793,1916.0,1915.9,8.90654728]
[1688283825715,0.67662793,1916.0,1915.9,9.31920873]
[1688283828121,0.36346793,1916.0,1915.9,9.00603873]
[1688283829220,0.65018428,1916.0,1915.9,9.00603873]
[1688283829415,0.65018428,1916.0,1915.9,7.44211568]
[1688283831421,0.36346793,1916.0,1915.9,7.44211568]
[1688283856542,0.29546793,1916.0,1915.9,7.44211568]
[1688283856736,0.2151889,1916.0,1915.9,7.44211568]
[1688283856933,8.38428969,1916.3,1915.9,7.44211568]
[1688283857134,8.38428969,1916.3,1916.2,2.806]
[1688283857433,9.23849016,1916.3,1916.2,2.806]
[1688283858334,10.17789016,1916.3,1916.2,2.806]
[1688283864241,10.55870384,1916.3,1916.2,2.806]
[1688283865438,9.70450337,1916.3,1916.2,2.806]
[1688283866239,9.99121972,1916.3,1916.2,2.806]
[1688283868436,9.70450337,1916.3,1916.2,3.11913]
[1688283868635,1.32021368,1916.3,1916.2,3.11913]
[1688283868836,1.32021368,1916.3,1916.2,2.806]
[1688283869144,1.32021368,1916.3,1916.2,3.52726871]
[1688283873747,0.38081368,1916.3,1916.2,3.52726871]
[1688283874044,0.31311,1916.4,1916.2,3.52726871]
[1688283874245,0.31311,1916.4,1916.3,6.34192]
[1688283874635,9.32364969,1916.5,1916.3,6.34192]
[1688283874844,9.32364969,1916.5,1916.4,2.806]
[1688283875045,9.32364969,1916.5,1916.4,8.3521]
[1688283877350,8.38428969,1916.5,1916.4,8.3521]
[1688283877744,13.92027969,1916.6,1916.4,8.3521]
[1688283877947,13.92027969,1916.6,1916.5,2.806]
[1688283878140,8.69737969,1916.6,1916.5,2.806]
[1688283878339,0.31309,1916.6,1916.5,2.806]
[1688283879350,0.59980635,1916.6,1916.5,2.806]
[1688283879551,1.0123163,1916.6,1916.5,2.806]
[1688283882649,0.72559995,1916.6,1916.5,2.806]
[1688283886148,0.31305,1916.8,1916.5,6.43088]
[1688283886350,0.31305,1916.8,1916.7,2.806]
[1688283887246,0.93919,1916.9,1916.7,8.06295]
[1688283887548,0.93919,1916.9,1916.8,2.813]
[1688283888142,1.22590635,1916.9,1916.8,2.813]
[1688283889151,0.93919,1916.9,1916.8,2.813]
[1688283889846,1.22590635,1916.9,1916.8,2.813]
[1688283890150,0.93919,1916.9,1916.8,3.12603]
[1688283890544,8.75836069,1917.0,1916.8,3.12603]
[1688283890751,0.31302,1917.0,1916.9,2.806]
[1688283890950,0.31302,1917.0,1916.9,3.11902]
[1688283893953,0.77164381,1917.0,1916.9,3.11902]
[1688283894954,0.77164381,1917.0,1916.9,2.806]
[1688283895153,1.05836016,1917.0,1916.9,2.806]
[1688283898149,1.05836016,1917.0,1916.8,2.815]
[1688283898360,0.56748412,1916.9,1916.8,2.815]
[1688283898659,0.56748412,1916.9,1916.8,3.12803]
[1688283898660,1.3500537,1916.9,1916.8,3.12803]
[1688283898951,0.78256958,1916.9,1916.8,3.12803]
[1688283899159,1.06928593,1916.9,1916.8,8.00923]
[1688283899357,0.78256958,1916.9,1916.8,8.00923]
[1688283901061,2.66085358,1916.9,1916.8,8.00923]
[1688283901462,2.66085358,1916.9,1916.8,10.81823]
[1688283901658,2.34783358,1916.9,1916.8,10.81823]
[1688283902764,2.66084358,1916.9,1916.8,10.81823]
[1688283905360,8.97135993,1916.9,1916.7,0.42189205]
[1688283905566,8.97135993,1916.9,1916.6,2.821]
[1688283905865,8.98293032,1916.8,1916.6,2.821]
[1688283906066,0.59976635,1916.7,1916.6,2.821]
[1688283906264,2.9429453,1916.7,1916.6,2.821]
[1688283907474,6.1507453,1916.7,1916.6,3.23431311]
[1688283908470,2.9429453,1916.7,1916.6,3.23431311]
[1688283910372,2.9429453,1916.7,1916.6,3.54738311]
[1688283911669,2.9429453,1916.7,1916.6,3.23431311]
[1688283918384,3.0469453,1916.7,1916.6,3.23431311]
[1688283919577,6.2547453,1916.7,1916.6,2.821]
[1688283919786,6.2547453,1916.7,1915.9,7.66652839]
[1688283919787,26.14827379,1916.7,1915.9,7.66652839]
[1688283919986,0.31315,1916.1,1915.9,2.82882839]
[1688283920172,7.19116047,1916.0,1915.9,0.00782839]
[1688283920377,17.4561753,1916.0,1915.9,0.00782839]
[1688283920579,9.0939618,1916.0,1915.9,0.00782839]
[1688283922781,9.0939618,1916.0,1915.9,0.4314259]
[1688283922979,9.0939618,1916.0,1915.9,0.00782839]
[1688283930486,17.7579618,1916.0,1915.9,0.00782839]
[1688283932989,17.7509618,1916.0,1915.9,0.00782839]
[1688283933183,9.0869618,1916.0,1915.9,0.00782839]
[1688283936794,9.0959618,1916.0,1915.9,0.00782839]
[1688283936991,9.0959618,1916.0,1915.9,0.41947838]
[1688283937195,2.21596133,1916.0,1915.9,3.55365838]
[1688283937394,0.21260133,1916.0,1915.9,3.14200839]
[1688283937600,0.31316,1916.2,1915.9,3.14200839]
[1688283937797,1.47063985,1916.1,1915.9,3.14200839]
[1688283937997,0.31316,1916.2,1915.9,3.14200839]
[1688283938396,1.47063662,1916.1,1915.9,3.14200839]
[1688283938602,0.31316,1916.2,1915.9,3.14200839]
[1688283939698,1.57962481,1916.1,1915.9,3.14200839]
[1688283939899,1.89278481,1916.1,1915.9,3.14200839]
[1688283941699,5.38730116,1916.1,1915.9,3.14200839]
[1688283942091,5.38730116,1916.1,1916.0,2.813]
[1688283942296,5.38730116,1916.1,1916.0,3.12616]
[1688283943698,2.17950116,1916.1,1916.0,3.12616]
[1688283945802,5.38730116,1916.1,1916.0,3.12616]
[1688283947309,1.57962481,1916.1,1916.0,3.12616]
[1688283947515,0.59986635,1916.1,1916.0,2.813]
[1688283947806,3.80766635,1916.1,1916.0,2.813]
[1688283949505,3.80766635,1916.1,1915.7,5.33130773]
[1688283949506,37.02915047,1916.1,1915.1,1.3653866]
[1688283949708,2.819,1915.2,1915.1,0.31331]
[1688283949907,3.41900635,1915.2,1915.1,0.31331]
[1688283952112,0.60000635,1915.2,1915.1,0.31331]
[1688283953307,0.60000635,1915.2,1915.1,0.7261751]
[1688283953509,0.60000635,1915.2,1915.1,0.31331]
[1688283956109,0.31329,1915.2,1915.1,0.31331]
[1688283956411,0.60000635,1915.2,1915.1,0.31331]
[1688283958116,0.31329,1915.2,1915.1,0.31331]
[1688283958419,0.31329,1915.2,1915.1,3.12631]
[1688283958810,1.5470157,1915.2,1915.1,3.12631]
[1688283959517,1.83373205,1915.2,1915.1,3.12631]
[1688283960413,1.83373205,1915.2,1915.1,0.31331]
[1688283966516,0.8223257,1915.2,1915.1,3.12631]
[1688283966710,0.31325,1915.5,1915.1,5.93531]
[1688283966914,0.78313,1915.6,1915.4,2.815]
[1688283967117,0.31325,1915.5,1915.4,0.31325]
[1688283967317,0.31325,1915.5,1915.4,3.13425]
[1688283970026,0.31325,1915.5,1915.4,8.21285]
[1688283974421,1.22644127,1915.5,1915.4,8.21285]
[1688283974820,12.98615762,1915.5,1915.1,3.85923]
[1688283975116,12.98615762,1915.5,1915.1,3.12831]
[1688283975117,0.31328,1915.3,1915.1,3.12831]
[1688283975322,0.91318449,1915.2,1915.1,3.12831]
[1688283975519,1.51320084,1915.2,1915.1,3.12831]
[1688283976113,4.72100084,1915.2,1915.1,3.12831]
[1688283978923,1.51320084,1915.2,1915.1,3.12831]
[1688283980721,1.22648449,1915.2,1915.1,3.12831]
[1688283980923,1.51320084,1915.2,1915.1,3.12831]
[1688283982030,1.51320084,1915.2,1915.1,0.31331]
[1688283983228,4.72100084,1915.2,1915.1,0.31331]
[1688283984625,1.51320084,1915.2,1915.1,0.31331]
[1688283989128,1.22648449,1915.2,1915.1,0.31331]
[1688283989835,1.51320084,1915.2,1915.1,0.31331]
[1688283990741,1.22648449,1915.2,1915.1,0.31331]
[1688283991237,1.51320084,1915.2,1915.1,0.31331]
[1688283992839,0.91318449,1915.2,1915.1,3.13431]
[1688283993840,1.22647449,1915.2,1915.1,3.13431]
[1688283997239,1.51319084,1915.2,1915.1,3.13431]
[1688283998448,1.22647449,1915.2,1915.1,3.13431]
[1688283999241,1.51319084,1915.2,1915.1,3.13431]
[1688284001147,1.22647449,1915.2,1915.1,3.13431]
[1688284002048,1.22647449,1915.2,1915.1,0.31331]
[1688284004243,1.51319084,1915.2,1915.1,0.31331]
[1688284004849,1.22647449,1915.2,1915.1,0.31331]
[1688284005551,1.51319084,1915.2,1915.1,0.31331]
[1688284005745,1.22647449,1915.2,1915.1,0.31331]
[1688284006345,1.51319084,1915.2,1915.1,0.31331]
[1688284008444,1.22647449,1915.2,1915.1,0.31331]
[1688284009148,1.51319084,1915.2,1915.1,0.31331]
[1688284011855,1.22647449,1915.2,1915.1,0.31331]
[1688284012755,1.51319084,1915.2,1915.1,0.31331]
[1688284013650,0.93978,1915.7,1915.1,15.45401608]
[1688284013853,0.16328606,1915.6,1915.5,0.78309]
[1688284014047,0.93978,1915.7,1915.5,3.8907155]
[1688284014245,0.93978,1915.7,1915.6,3.12623]
[1688284015355,1.22649635,1915.7,1915.6,3.12623]
[1688284016852,1.22649635,1915.7,1915.6,8.15663]
[1688284017254,1.22649635,1915.7,1915.6,7.8434]
[1688284017656,1.22649635,1915.7,1915.6,8.15663]
[1688284021164,1.22649635,1915.7,1915.6,7.8434]
[1688284021359,1.22649635,1915.7,1915.6,8.15663]
[1688284022067,1.22649635,1915.7,1915.6,5.34363]
[1688284022265,9.57675839,1915.7,1915.6,5.34363]
[1688284024467,1.22649635,1915.7,1915.6,5.34363]
[1688284025364,12.38277695,1915.7,1915.5,0.41786369]
[1688284025568,6.59328412,1915.6,1915.2,0.31329]
[1688284025766,6.0168,1915.4,1915.2,6.02113377]
[1688284025965,1.16748047,1915.3,1915.2,5.61339]
[1688284029376,1.38247984,1915.3,1915.2,5.61339]
[1688284030768,1.16748047,1915.3,1915.2,5.61339]
[1688284032072,3.98648047,1915.3,1915.2,5.61339]
[1688284034069,3.98648047,1915.3,1915.2,5.9000155]
[1688284034276,3.98648047,1915.3,1915.2,5.61339]
[1688284035177,0.7832,1915.5,1915.2,5.9000155]
[1688284035376,0.3132,1915.8,1915.3,3.2078]
[1688284035575,0.3132,1915.8,1915.7,2.813]
[1688284035775,8.94360692,1915.8,1915.7,3.12621]
[1688284035978,0.59991635,1915.8,1915.7,3.12621]
[1688284037670,0.59991635,1915.8,1915.7,3.4128355]
[1688284038375,0.59991635,1915.8,1915.7,3.0996255]
[1688284038575,0.3132,1915.8,1915.7,3.0996255]
[1688284038771,3.40891635,1915.8,1915.5,0.31325]
[1688284038983,6.58428412,1915.7,1915.5,5.54525]
[1688284039178,0.59994635,1915.6,1915.5,5.54525]
[1688284040076,8.9313047,1915.6,1915.5,5.54525]
[1688284044384,9.11753535,1915.6,1915.5,5.54525]
[1688284045882,9.11753535,1915.6,1915.5,5.96404911]
[1688284046688,0.786177,1915.6,1915.5,5.96404911]
[1688284046888,0.786177,1915.6,1915.5,6.25067461]
[1688284047584,0.786177,1915.6,1915.5,5.96404911]
[1688284047790,0.786177,1915.6,1915.5,6.25067461]
[1688284049698,0.786177,1915.6,1915.5,5.96404911]
[1688284051394,9.11940182,1915.6,1915.5,5.96404911]
[1688284051790,9.11940182,1915.6,1915.5,5.65079911]
[1688284052087,9.11940182,1915.6,1915.5,5.96404911]
[1688284053893,8.83268547,1915.6,1915.5,9.06567461]
[1688284054094,9.11940182,1915.6,1915.5,8.77904911]
[1688284054397,0.786177,1915.6,1915.5,8.77904911]
[1688284055998,0.786177,1915.6,1915.5,9.06567461]
[1688284056200,0.49946065,1915.6,1915.5,9.06567461]
[1688284063317,0.786177,1915.6,1915.5,9.06567461]
[1688284063606,0.786177,1915.6,1915.5,8.77904911]
[1688284063911,0.49946065,1915.6,1915.5,9.06567461]
[1688284065316,0.786177,1915.6,1915.5,8.77904911]
[1688284066707,0.49946065,1915.6,1915.5,9.06567461]
[1688284068310,0.18623065,1915.6,1915.5,9.06567461]
[1688284068611,8.64645482,1915.7,1915.5,9.05667461]
[1688284068805,0.31323,1915.7,1915.6,3.12824]
[1688284070413,0.59994635,1915.7,1915.6,3.12824]
[1688284074316,0.49615957,1915.7,1915.6,3.12824]
[1688284079531,0.49615957,1915.7,1915.6,3.12624]
[1688284084031,0.18292957,1915.7,1915.6,3.12624]
[1688284084338,3.52096,1916.1,1915.7,2.802]
[1688284084641,3.52096,1916.1,1916.0,3.13417]
[1688284084831,3.52096,1916.1,1916.0,3.4207955]
[1688284085432,0.31316,1916.1,1916.0,3.4207955]
[1688284086035,3.80767635,1916.1,1916.0,2.821]
[1688284086833,6.62567635,1916.1,1916.0,0.31317]
[1688284087033,14.98807535,1916.1,1916.0,0.31317]
[1688284087336,14.98807535,1916.1,1916.0,0.5997955]
[1688284087337,14.701359,1916.1,1916.0,0.5997955]
[1688284089548,14.98807535,1916.1,1916.0,0.5997955]
[1688284090056,14.98807535,1916.1,1916.0,0.31317]
[1688284090843,14.98807535,1916.1,1916.0,0.5997955]
[1688284091742,14.98807535,1916.1,1916.0,0.31317]
[1688284092147,15.26940812,1916.1,1916.0,0.5997955]
[1688284092943,14.98269177,1916.1,1916.0,0.5997955]
[1688284093746,15.26940812,1916.1,1916.0,0.5997955]
[1688284094042,14.98269177,1916.1,1916.0,0.5997955]
[1688284095848,15.26940812,1916.1,1916.0,0.5997955]
[1688284096855,14.98269177,1916.1,1916.0,0.5997955]
[1688284097546,14.66953177,1916.1,1916.0,0.5997955]
[1688284097755,14.98269177,1916.1,1916.0,0.5997955]
[1688284099951,15.26940812,1916.1,1916.0,0.5997955]
[1688284102153,15.26940812,1916.1,1916.0,0.31317]
[1688284106652,15.26940812,1916.1,1916.0,0.5997955]
[1688284106958,14.98269177,1916.1,1916.0,0.5997955]
[1688284107358,15.26940812,1916.1,1916.0,0.5997955]
[1688284108154,14.98269177,1916.1,1916.0,0.5997955]
[1688284109146,11.46173177,1916.1,1916.0,0.5997955]
[1688284109350,0.28033277,1916.1,1916.0,3.4207955]
[1688284109551,0.59349277,1916.1,1916.0,3.4207955]
[1688284109851,0.59338586,1916.1,1916.0,3.4207955]
[1688284114359,0.28022586,1916.1,1916.0,3.4207955]
[1688284114755,9.145359,1916.2,1916.0,3.4207955]
[1688284115056,0.28019634,1916.1,1916.0,3.4207955]
[1688284115456,9.145359,1916.2,1916.0,3.4207955]
[1688284115660,0.28019123,1916.1,1916.0,3.4207955]
[1688284115856,0.59334123,1916.1,1916.0,3.4207955]
[1688284116053,0.31315,1916.1,1916.0,3.4207955]
[1688284116257,0.59333832,1916.1,1916.0,3.4207955]
[1688284119258,0.28018832,1916.1,1916.0,3.4207955]
[1688284119453,0.59334832,1916.1,1916.0,3.4147955]
[1688284120068,0.28018832,1916.1,1916.0,3.4147955]
[1688284120562,0.78288,1916.2,1916.0,3.4147955]
[1688284120765,0.28253098,1916.1,1916.0,1.00857216]
[1688284120968,0.28253098,1916.1,1916.0,3.82357216]
[1688284121163,0.31314,1916.2,1916.0,3.82357216]
[1688284121363,0.31314,1916.2,1916.1,2.806]
[1688284121571,0.31314,1916.2,1916.1,3.11916]
[1688284122862,0.31314,1916.2,1916.1,3.12616]
[1688284125569,12.3077868,1916.3,1916.1,3.12616]
[1688284125970,12.3077868,1916.3,1916.2,0.2866255]
[1688284126175,12.3077868,1916.3,1916.2,5.6067655]
[1688284126976,12.59450315,1916.3,1916.2,5.32014]
[1688284127180,12.59450315,1916.3,1916.2,5.6067655]
[1688284127475,12.3077868,1916.3,1916.2,5.6067655]
[1688284131289,11.9946368,1916.3,1916.2,5.6067655]
[1688284131986,12.59447315,1916.3,1916.1,3.12616]
[1688284132193,0.56748412,1916.2,1916.1,0.31315]
[1688284132392,9.24302312,1916.2,1916.1,0.31315]
[1688284134488,9.52695156,1916.2,1916.1,0.31315]
[1688284135391,9.52695156,1916.2,1916.1,0.5997755]
[1688284136388,9.52695156,1916.2,1916.1,0.31315]
[1688284137694,9.52695156,1916.2,1916.0,0.72194666]
[1688284137895,3.49451635,1916.1,1916.0,0.72194666]
[1688284138091,4.09158221,1916.1,1916.0,0.72194666]
[1688284142104,6.91058221,1916.1,1916.0,0.72194666]
[1688284142296,15.27298121,1916.1,1916.0,0.72194666]
[1688284153507,15.69766294,1916.1,1916.0,0.72194666]
[1688284153710,15.27298121,1916.1,1916.0,0.72194666]
[1688284154710,15.27298121,1916.1,1916.0,1.00857216]
[1688284155009,12.06518121,1916.1,1916.0,1.00857216]
[1688284155207,3.70278221,1916.1,1916.0,1.00857216]
[1688284155611,6.91058221,1916.1,1916.0,1.00857216]
[1688284155906,15.27298121,1916.1,1916.0,1.00857216]
[1688284156913,15.27298121,1916.1,1916.0,0.72194666]
[1688284158415,15.27298121,1916.1,1916.0,1.00857216]
[1688284158603,15.27298121,1916.1,1916.0,0.72194666]
[1688284169114,14.95982121,1916.1,1916.0,1.00857216]
[1688284169315,15.27298121,1916.1,1916.0,1.00857216]
[1688284170515,14.98626486,1916.1,1916.0,1.00857216]
[1688284171012,15.27298121,1916.1,1916.0,1.00857216]
[1688284171615,15.27298121,1916.1,1916.0,0.72516505]
[1688284172313,12.45398121,1916.1,1916.0,0.72516505]
[1688284174114,15.26998121,1916.1,1916.0,0.72516505]
[1688284183228,12.06218121,1916.1,1916.0,0.72516505]
[1688284183427,6.90758221,1916.1,1916.0,0.72516505]
[1688284183620,15.26998121,1916.1,1916.0,0.72516505]
[1688284187926,12.06218121,1916.1,1916.0,0.72516505]
[1688284188334,3.69978221,1916.1,1916.0,0.72516505]
[1688284189427,3.38662221,1916.1,1916.0,0.72516505]
[1688284189626,6.90758221,1916.1,1916.0,0.72516505]
[1688284189829,15.26998121,1916.1,1916.0,0.41199505]
[1688284190021,15.26998121,1916.1,1916.0,0.72516505]
[1688284196630,12.42446,1916.3,1916.1,0.56748412]
[1688284196631,3.2078,1916.3,1916.1,0.56748412]
[1688284196832,3.59889,1916.2,1916.1,0.88062412]
[1688284197030,3.59889,1916.2,1916.1,12.84243085]
[1688284197634,3.59889,1916.2,1916.1,12.8456405]
[1688284201736,3.70289,1916.2,1916.1,12.8456405]
[1688284203444,3.59889,1916.2,1916.1,17.9342405]
[1688284204139,3.59889,1916.2,1916.1,12.8456405]
[1688284205947,3.71496734,1916.2,1916.1,12.8456405]
[1688284207131,3.81896734,1916.2,1916.1,12.8456405]
[1688284207341,3.81896734,1916.2,1916.1,12.5325005]
[1688284207540,3.81896734,1916.2,1916.1,0.00320965]
[1688284216352,3.81896734,1916.2,1916.1,0.31636965]
[1688284216557,3.81896734,1916.2,1916.1,0.00320965]
[1688284217851,4.24298337,1916.2,1916.1,0.00320965]
[1688284219561,0.56748412,1916.1,1916.0,0.40877666]
[1688284219750,6.89744412,1916.1,1915.9,5.16682861]
[1688284219946,2.819,1916.0,1915.9,5.16682861]
[1688284220146,3.13217,1916.0,1915.9,17.69742517]
[1688284220957,3.13217,1916.0,1915.9,5.16682861]
[1688284222558,3.13217,1916.0,1915.9,5.48001861]
[1688284222852,3.13217,1916.0,1915.9,5.76673496]
[1688284223058,3.13217,1916.0,1915.9,23.57773798]
[1688284223452,3.13217,1916.0,1915.9,23.29102163]
[1688284225258,3.13217,1916.0,1915.9,23.57773798]
[1688284225662,3.13217,1916.0,1915.9,5.16682861]
[1688284227160,3.13217,1916.0,1915.9,5.45354496]
[1688284227756,3.13217,1916.0,1915.9,5.45691957]
[1688284228564,3.13217,1916.0,1915.9,5.17020322]
[1688284230056,3.13217,1916.0,1915.9,5.45691957]
[1688284231372,3.13217,1916.0,1915.9,5.17020322]
[1688284231864,3.13217,1916.0,1915.9,5.45691957]
[1688284232470,3.13217,1916.0,1915.9,5.17020322]
[1688284233265,3.55860903,1916.0,1915.9,5.17020322]
[1688284235770,3.76498908,1916.0,1915.9,5.17020322]
[1688284235971,3.76498908,1916.0,1915.9,5.48339322]
[1688284236876,3.76498908,1916.0,1915.9,5.77010957]
[1688284239481,3.76498908,1916.0,1915.9,5.48339322]
[1688284243378,3.76498908,1916.0,1915.9,5.77010957]
[1688284244281,3.76498908,1916.0,1915.9,5.48339322]
[1688284245477,3.76498908,1916.0,1915.9,5.77010957]
[1688284247477,3.76498908,1916.0,1915.9,5.48339322]
[1688284249476,3.76498908,1916.0,1915.9,5.77010957]
[1688284251072,3.76498908,1916.0,1915.9,18.30076547]
[1688284251576,3.76498908,1916.0,1915.9,5.48339322]
[1688284252181,3.76498908,1916.0,1915.9,5.77010957]
[1688284253486,3.76498908,1916.0,1915.9,18.30084207]
[1688284256093,3.76498908,1916.0,1915.9,5.77010957]
[1688284256481,3.76498908,1916.0,1915.9,18.30090671]